bitfinex-derivatives/quotes_SOLF0:USTF0_20250907
["timestamp","ask_amount","ask_price","bid_price","bid_amount"]
[1757261242372,5.47434678,205.25,205.2,1.91514828]
[1757261242776,13.10434678,205.25,205.21,7.98]
[1757261244775,5.47434678,205.25,205.17,7.98]
[1757261244980,9.54514828,205.24,205.17,9.89514828]
[1757261245279,5.47434678,205.25,205.21,1.91514828]
[1757261245474,13.10434678,205.25,205.22,7.98]
[1757261246979,5.47434678,205.26,205.23,1.91514828]
[1757261247178,5.47434678,205.29,205.26,7.98]
[1757261247379,7.63,205.28,205.25,1.91514828]
[1757261247580,7.63,205.28,205.26,4.44661432]
[1757261247775,7.63,205.28,205.22,1.91514828]
[1757261247976,7.38949506,205.29,205.23,4.44681225]
[1757261248179,5.47434678,205.28,205.24,4.44681225]
[1757261248377,7.63,205.27,205.25,4.44681225]
[1757261248578,5.47434678,205.27,205.21,1.91514828]
[1757261248882,7.63,205.26,205.22,4.4473558]
[1757261249180,7.63,205.26,205.23,4.4473558]
[1757261249380,7.63,205.26,205.24,4.4473558]
[1757261249581,7.38949506,205.27,205.21,1.91514828]
[1757261249780,7.38949506,205.27,205.22,4.43527781]
[1757261249974,7.38949506,205.27,205.21,1.91514828]
[1757261249975,13.10434678,205.26,205.23,4.43527781]
[1757261250176,7.63,205.25,205.21,1.91514828]
[1757261250372,5.47434678,205.26,205.22,4.43516047]
[1757261250583,7.63,205.25,205.23,4.43516047]
[1757261250782,7.63,205.25,205.24,4.43516047]
[1757261253379,7.38949506,205.27,205.24,4.43516047]
[1757261253586,7.38949506,205.27,205.21,1.91514828]
[1757261253587,15.01949506,205.27,205.21,1.91514828]
[1757261253885,7.63,205.26,205.23,7.98]
[1757261254080,7.63,205.26,205.24,4.43533816]
[1757261254286,7.63,205.26,205.23,7.98]
[1757261254582,7.63,205.26,205.24,4.43532918]
[1757261254783,7.38949506,205.27,205.21,1.91514828]
[1757261254983,7.38949506,205.27,205.22,4.43533094]
[1757261254984,7.6,205.25,205.22,4.43533094]
[1757261255185,5.47434678,205.26,205.23,4.43533094]
[1757261255480,5.47434678,205.26,205.21,1.91514828]
[1757261255481,5.47434678,205.26,205.21,9.35514828]
[1757261255688,7.6,205.25,205.22,4.43534123]
[1757261255886,5.47434678,205.26,205.23,4.43534123]
[1757261256088,13.07434678,205.26,205.2,1.91514828]
[1757261256289,13.07434678,205.26,205.21,4.4356879]
[1757261256489,5.47434678,205.26,205.25,7.44]
[1757261256787,5.47434678,205.29,205.24,1.91514828]
[1757261256989,5.47434678,205.29,205.26,9.35514828]
[1757261257186,5.47434678,205.29,205.27,7.44]
[1757261257389,5.47434678,205.3,205.28,9.35514828]
[1757261258188,13.07434678,205.3,205.28,1.91514828]
[1757261258883,13.07434678,205.3,205.25,7.44]
[1757261259089,13.07434678,205.3,205.27,1.91514828]
[1757261261793,5.47434678,205.3,205.27,1.91514828]
[1757261261991,13.07434678,205.3,205.27,1.91514828]
[1757261262793,7.6,205.29,205.27,1.91514828]
[1757261264694,7.6,205.31,205.27,9.35514828]
[1757261265494,5.47434678,205.32,205.27,1.91514828]
[1757261265696,7.6,205.31,205.27,1.91514828]
[1757261265995,5.47434678,205.31,205.27,1.91514828]
[1757261266195,7.6,205.3,205.27,1.91514828]
[1757261266498,13.07434678,205.31,205.24,4.3847]
[1757261269293,13.07434678,205.31,205.23,7.44]
[1757261269495,13.07434678,205.3,205.23,7.44]
[1757261269896,7.6,205.27,205.23,7.44]
[1757261270096,5.47434678,205.28,205.23,7.44]
[1757261270304,5.47434678,205.28,205.25,2.99153534]
[1757261270499,7.6,205.34,205.26,11.91654236]
[1757261270693,7.6,205.34,205.3,7.44]
[1757261270896,7.6,205.34,205.31,11.91654236]
[1757261271099,7.6,205.34,205.31,7.44]
[1757261272600,5.47434678,205.35,205.29,7.37513534]
[1757261272799,5.47434678,205.35,205.3,4.47425282]
[1757261272996,13.07434678,205.35,205.32,7.44]
[1757261274300,7.6,205.35,205.32,7.44]
[1757261277101,5.47434678,205.36,205.32,7.44]
[1757261277301,7.6,205.35,205.32,7.44]
[1757261277497,5.47434678,205.36,205.32,7.44]
[1757261277692,7.6,205.35,205.32,7.44]
[1757261277999,5.47434678,205.36,205.32,7.44]
[1757261278202,7.6,205.35,205.32,7.44]
[1757261278894,5.47434678,205.36,205.3,2.99153534]
[1757261279301,7.6,205.35,205.3,2.99153534]
[1757261279506,7.6,205.35,205.28,7.44]
[1757261279697,2.99153534,205.38,205.28,7.44]
[1757261279698,7.6,205.33,205.28,7.44]
[1757261280203,7.6,205.33,205.25,11.8245]
[1757261280403,7.6,205.33,205.26,4.476001]
[1757261280604,7.6,205.33,205.27,4.476001]
[1757261280800,5.47434678,205.34,205.28,4.476001]
[1757261281004,7.6,205.33,205.26,7.44]
[1757261281202,7.6,205.33,205.27,4.47716946]
[1757261281400,7.6,205.33,205.28,4.47716946]
[1757261281706,7.6,205.33,205.26,11.8242]
[1757261281906,7.6,205.33,205.27,4.47709596]
[1757261282106,5.47434678,205.34,205.28,4.47709596]
[1757261282306,7.6,205.33,205.26,11.8242]
[1757261282507,7.6,205.33,205.27,4.47697729]
[1757261282700,7.6,205.33,205.28,4.47697729]
[1757261283005,7.6,205.33,205.26,11.8242]
[1757261283203,7.6,205.33,205.27,4.47708813]
[1757261283404,7.6,205.33,205.28,4.47708813]
[1757261283604,7.6,205.33,205.26,11.8242]
[1757261283807,7.6,205.33,205.27,4.47700216]
[1757261284006,5.47434678,205.34,205.28,4.47700216]
[1757261284208,7.6,205.33,205.26,11.8242]
[1757261284411,7.6,205.33,205.27,4.47673344]
[1757261284608,80.95434678,205.34,205.28,4.47673344]
[1757261284800,7.6,205.33,205.26,7.44]
[1757261285000,5.47434678,205.32,205.26,7.44]
[1757261285711,7.95,205.31,205.26,7.44]
[1757261286103,13.42434678,205.32,205.26,7.44]
[1757261288311,13.42434678,205.32,205.27,4.47978941]
[1757261288510,13.42434678,205.32,205.26,7.44]
[1757261288809,7.95,205.31,205.27,12.18978941]
[1757261289009,7.95,205.31,205.27,7.71]
[1757261289512,5.47434678,205.32,205.26,7.71]
[1757261289701,5.47434678,205.32,205.27,4.48032646]
[1757261289902,7.95,205.31,205.27,7.71]
[1757261290613,119.22,205.35,205.27,7.71]
[1757261291813,2.99153534,205.33,205.23,7.71]
[1757261292015,2.99153534,205.33,205.24,4.48195736]
[1757261292217,2.99153534,205.3,205.25,4.48195736]
[1757261292417,2.99153534,205.3,205.19,7.71]
[1757261292614,7.95,205.29,205.2,4.48349104]
[1757261292915,7.95,205.29,205.19,7.71]
[1757261293922,2.99153534,205.3,205.19,12.0957]
[1757261294216,7.95,205.29,205.19,12.0957]
[1757261294411,7.95,205.29,205.18,2.99153534]
[1757261294610,7.95,205.29,205.21,7.71]
[1757261295710,7.95,205.29,205.22,2.99153534]
[1757261295911,7.95,205.35,205.25,2.99153534]
[1757261296116,7.95,205.35,205.26,7.71]
[1757261297116,7.95,205.35,205.26,12.0941]
[1757261299122,2.99153534,205.36,205.26,12.0941]
[1757261299324,7.95,205.35,205.26,7.71]
[1757261300015,61.53,205.35,205.26,7.71]
[1757261300412,85.72,205.34,205.26,7.71]
[1757261300612,10.94153534,205.33,205.21,2.99153534]
[1757261300920,10.94153534,205.33,205.22,7.71]
[1757261306723,105.28,205.32,205.22,7.71]
[1757261306924,7.95,205.31,205.22,7.71]
[1757261307327,28.49,205.34,205.24,7.71]
[1757261308327,2.99153534,205.33,205.24,7.71]
[1757261308527,7.95,205.32,205.24,7.71]
[1757261310122,7.95,205.29,205.2,7.71]
[1757261310829,16.14600198,205.29,205.2,7.71]
[1757261311318,19.98,205.28,205.2,7.71]
[1757261311927,38.2,205.28,205.2,7.71]
[1757261315129,7.39,205.27,205.2,7.71]
[1757261315427,10.38153534,205.27,205.2,7.71]
[1757261315617,7.39,205.25,205.2,7.71]
[1757261315822,0.03693024,205.26,205.2,7.71]
[1757261316020,7.39,205.25,205.2,7.71]
[1757261316220,0.03693024,205.26,205.2,7.71]
[1757261316420,7.39,205.25,205.17,7.72]
[1757261317526,70.47153534,205.24,205.17,7.72]
[1757261317726,7.39,205.23,205.1,7.72]
[1757261318031,7.39,205.23,205.11,7.72]
[1757261318422,7.39,205.2,205.11,7.72]
[1757261321831,24.25,205.2,205.11,7.72]
[1757261322028,7.39,205.2,205.11,7.72]
[1757261322429,7.39,205.23,205.14,7.72]
[1757261322628,30.28,205.22,205.14,7.72]
[1757261323133,7.39,205.21,205.14,7.72]
[1757261325935,79.25,205.21,205.14,7.72]
[1757261327432,71.86,205.21,205.11,12.1075]
[1757261327633,7.39,205.2,205.11,12.1075]
[1757261327827,7.39,205.2,205.11,7.72]
[1757261328433,1.91707948,205.19,205.12,1.91707948]
[1757261328933,1.91707948,205.19,205.13,7.72]
[1757261329535,9.30707948,205.19,205.15,7.72]
[1757261330736,1.91707948,205.19,205.14,1.91707948]
[1757261330937,7.39,205.18,205.14,9.63707948]
[1757261332139,7.39,205.18,205.14,7.72]
[1757261333642,7.39,205.18,205.12,1.91707948]
[1757261334843,7.39,205.18,205.1,7.72]
[1757261335043,7.39,205.18,205.12,1.91707948]
[1757261335544,7.39,205.18,205.12,9.63707948]
[1757261343850,7.39,205.18,205.12,7.72]
[1757261344052,7.39,205.16,205.12,7.72]
[1757261344449,7.39,205.16,205.1,1.91707948]
[1757261344750,7.39,205.16,205.13,7.72]
[1757261346557,7.39,205.16,205.13,7.73]
[1757261346752,55.65707948,205.18,205.12,1.91707948]
[1757261347454,8.1,205.17,205.12,1.91707948]
[1757261347656,55.65707948,205.18,205.12,1.91707948]
[1757261347857,8.1,205.17,205.12,1.91707948]
[1757261348355,55.65707948,205.18,205.12,1.91707948]
[1757261348556,8.1,205.17,205.12,1.91707948]
[1757261348957,8.1,205.17,205.1,9.64707948]
[1757261351959,8.1,205.17,205.1,7.73]
[1757261352160,8.1,205.17,205.1,9.64707948]
[1757261353255,13.55389018,205.17,205.1,9.64707948]
[1757261354664,13.55389018,205.17,205.1,7.73]
[1757261354960,13.55389018,205.17,205.1,9.64707948]
[1757261356062,13.55389018,205.17,205.1,7.73]
[1757261356263,8.1,205.15,205.09,9.64707948]
[1757261356762,8.1,205.15,205.09,7.73]
[1757261357061,8.1,205.15,205.09,9.64707948]
[1757261357263,8.1,205.15,205.09,12.1179]
[1757261357459,7.37096966,205.16,205.1,1.91707948]
[1757261357761,8.1,205.15,205.1,9.64707948]
[1757261357957,13.55389018,205.16,205.1,9.64707948]
[1757261359367,13.55389018,205.16,205.1,7.73]
[1757261359962,7.37096966,205.15,205.1,7.73]
[1757261360463,8.1,205.14,205.1,7.73]
[1757261360664,7.37096966,205.15,205.1,7.73]
[1757261360864,8.1,205.14,205.1,7.73]
[1757261361065,7.37096966,205.15,205.1,7.73]
[1757261361663,8.1,205.14,205.1,7.73]
[1757261362061,8.1,205.14,205.09,1.91707948]
[1757261362260,8.1,205.14,205.1,7.73]
[1757261362657,8.1,205.14,205.09,1.91707948]
[1757261362866,8.1,205.14,205.1,7.73]
[1757261363565,8.1,205.14,205.09,1.91707948]
[1757261363766,8.1,205.14,205.1,7.73]
[1757261364167,5.45389018,205.15,205.11,1.91707948]
[1757261364367,5.45389018,205.15,205.12,7.73]
[1757261364569,13.55389018,205.15,205.12,7.73]
[1757261366772,13.55389018,205.15,205.12,9.64707948]
[1757261368468,5.45389018,205.15,205.12,1.91707948]
[1757261368674,5.45389018,205.15,205.13,7.73]
[1757261370178,13.55389018,205.15,205.13,7.73]
[1757261370574,5.45389018,205.15,205.13,7.73]
[1757261370875,13.55389018,205.15,205.13,7.73]
[1757261376184,5.45389018,205.15,205.12,4.3872]
[1757261376389,10.11308146,205.18,205.13,1.91707948]
[1757261376390,5.45389018,205.17,205.13,1.91707948]
[1757261376989,7.37096966,205.14,205.08,1.91707948]
[1757261377190,15.38096966,205.14,205.08,9.66707948]
[1757261377391,13.46389018,205.14,205.08,9.66707948]
[1757261377890,13.46389018,205.14,205.1,7.75]
[1757261378093,5.45389018,205.15,205.1,1.91707948]
[1757261378287,5.45389018,205.15,205.11,7.75]
[1757261378480,5.45389018,205.15,205.1,1.91707948]
[1757261379089,5.45389018,205.15,205.12,7.75]
[1757261379285,5.45389018,205.15,205.11,4.3874]
[1757261379881,5.45389018,205.15,205.12,7.75]
[1757261380090,5.45389018,205.15,205.11,4.3874]
[1757261380390,13.46389018,205.15,205.12,7.75]
[1757261380581,8.01,205.14,205.12,7.75]
[1757261382092,13.46389018,205.14,205.12,7.75]
[1757261383995,8.01,205.14,205.12,7.75]
[1757261384191,13.46389018,205.14,205.12,7.75]
[1757261390099,5.45389018,205.16,205.1,7.75]
[1757261390992,5.45389018,205.16,205.14,12.1369]
[1757261391794,5.45389018,205.16,205.15,7.75]
[1757261392001,5.45389018,205.18,205.16,7.75]
[1757261392199,119.24,205.19,205.16,7.75]
[1757261392200,132.70389018,205.19,205.16,7.75]
[1757261392492,8.01,205.18,205.16,7.75]
[1757261392692,13.46389018,205.18,205.16,7.75]
[1757261392899,5.45389018,205.18,205.16,7.75]
[1757261393095,5.45389018,205.19,205.16,7.75]
[1757261393295,8.01,205.18,205.16,7.75]
[1757261395603,5.45389018,205.19,205.13,7.75]
[1757261395798,41.67,205.21,205.15,2.99594924]
[1757261396001,47.12389018,205.21,205.15,2.99594924]
[1757261396303,47.12389018,205.21,205.16,7.75]
[1757261396503,39.11389018,205.21,205.15,2.99594924]
[1757261396700,5.45389018,205.21,205.13,7.75]
[1757261396899,8.01,205.2,205.17,7.75]
[1757261400102,77.01389018,205.22,205.17,7.75]
[1757261400408,5.45389018,205.21,205.17,7.75]
[1757261400804,8.01,205.2,205.17,7.75]
[1757261401311,124.67389018,205.21,205.17,7.75]
[1757261401510,8.01,205.2,205.14,12.1368]
[1757261409316,7.56,205.2,205.11,8.11]
[1757261409513,5.45389018,205.17,205.11,8.11]
[1757261410210,7.56,205.18,205.11,8.11]
[1757261411013,7.56,205.18,205.12,4.3872]
[1757261411209,5.45389018,205.19,205.12,4.3872]
[1757261411416,7.56,205.18,205.12,12.4972]
[1757261412811,13.01389018,205.18,205.12,12.4972]
[1757261413318,13.01389018,205.18,205.12,8.11]
[1757261421720,7.56,205.16,205.12,8.11]
[1757261422120,5.45389018,205.17,205.12,8.11]
[1757261422322,7.56,205.16,205.11,4.3875]
[1757261422815,5.45389018,205.17,205.12,8.11]
[1757261423620,7.56,205.16,205.06,8.11]
[1757261423816,7.56,205.14,205.06,8.11]
[1757261424011,13.01389018,205.14,205.06,8.11]
[1757261424215,7.56,205.14,205.06,8.11]
[1757261424416,7.56,205.14,205.08,8.11]
[1757261424620,40.65389018,205.17,205.08,8.11]
[1757261425219,40.65389018,205.17,205.1,12.4976]
[1757261425415,5.45389018,205.16,205.08,8.11]
[1757261425620,75.09389018,205.17,205.08,8.11]
[1757261426223,75.09389018,205.17,205.1,2.99594924]
[1757261426423,13.01389018,205.17,205.11,8.11]
[1757261426618,5.45389018,205.19,205.11,8.11]
[1757261427222,7.56,205.21,205.14,8.11]
[1757261428220,5.45389018,205.22,205.17,12.4961]
[1757261428717,7.56,205.21,205.17,8.11]
[1757261429023,5.45389018,205.22,205.15,8.11]
[1757261429222,13.01389018,205.24,205.15,8.11]
[1757261429923,5.45389018,205.23,205.19,8.11]
[1757261430122,7.56,205.22,205.19,8.11]
[1757261437120,7.89,205.22,205.16,7.33]
[1757261437424,13.34389018,205.22,205.16,7.33]
[1757261440531,13.34389018,205.22,205.16,11.7164]
[1757261440728,7.89,205.22,205.15,7.33]
[1757261441329,7.89,205.22,205.18,4.386]
[1757261441531,7.89,205.22,205.19,7.33]
[1757261442332,7.89,205.22,205.18,4.386]
[1757261442629,7.89,205.22,205.19,7.33]
[1757261442830,13.34389018,205.24,205.2,7.33]
[1757261443031,7.89,205.23,205.2,7.33]
[1757261443727,5.45389018,205.24,205.2,7.33]
[1757261444229,7.89,205.23,205.2,7.33]
[1757261444828,5.45389018,205.24,205.19,4.3857]
[1757261445025,13.34389018,205.24,205.2,7.33]
[1757261446029,13.34389018,205.24,205.19,4.3857]
[1757261446534,13.34389018,205.24,205.2,7.33]
[1757261447325,7.89,205.23,205.2,7.33]
[1757261447525,7.89,205.23,205.19,4.3857]
[1757261447828,7.89,205.24,205.21,7.33]
[1757261448629,15.25964191,205.25,205.21,7.33]
[1757261448933,7.89,205.24,205.21,7.33]
[1757261449830,5.45389018,205.25,205.2,1.91575173]
[1757261450033,13.34389018,205.28,205.22,1.91575173]
[1757261450235,7.89,205.28,205.22,9.24575173]
[1757261451930,7.89,205.28,205.22,13.63085173]
[1757261452238,7.89,205.28,205.22,9.24575173]
[1757261452838,7.89,205.28,205.23,4.3849]
[1757261453231,1.91575173,205.29,205.23,4.3849]
[1757261453438,7.89,205.28,205.23,4.3849]
[1757261453834,1.91575173,205.29,205.23,4.3849]
[1757261454233,121.05575173,205.29,205.23,4.3849]
[1757261454431,1.91575173,205.27,205.23,11.7149]
[1757261454634,9.80575173,205.27,205.24,7.33]
[1757261455639,7.89,205.26,205.23,11.7149]
[1757261455840,7.89,205.26,205.23,4.3849]
[1757261456041,7.89,205.26,205.24,7.33]
[1757261456937,9.80575173,205.27,205.24,7.33]
[1757261458840,7.89,205.26,205.24,7.33]
[1757261460341,7.89,205.26,205.17,68.2309]
[1757261460342,1.91575173,205.25,205.17,7.33]
[1757261460543,7.89,205.23,205.16,7.33]
[1757261460942,1.91575173,205.22,205.17,4.3862]
[1757261461244,1.91575173,205.22,205.16,7.33]
[1757261462336,1.91575173,205.22,205.16,11.7164]
[1757261462533,1.91575173,205.22,205.1,68.2544]
[1757261462534,1.91575173,205.17,205.11,7.33]
[1757261463840,7.89,205.18,205.11,7.33]
[1757261464041,1.91575173,205.17,205.11,7.33]
[1757261466144,1.91575173,205.13,205.02,8.03]
[1757261466346,1.91575173,205.11,205.04,8.03]
[1757261468342,1.91575173,205.11,205.06,8.03]
[1757261468745,1.91575173,205.11,205.05,6.30435173]
[1757261468943,1.91575173,205.11,205.05,14.33435173]
[1757261469249,1.91575173,205.11,205.05,12.4186]
[1757261469437,1.91575173,205.11,205.05,14.33435173]
[1757261470148,7.56,205.13,205.06,4.3885]
[1757261470448,1.91575173,205.15,205.1,8.03]
[1757261470743,1.91575173,205.15,205.09,1.91575173]
[1757261470943,1.91575173,205.15,205.1,8.03]
[1757261471244,1.91575173,205.15,205.09,1.91575173]
[1757261471447,1.91575173,205.15,205.09,9.94575173]
[1757261471845,1.91575173,205.15,205.09,14.33355173]
[1757261473348,1.91575173,205.16,205.09,1.91575173]
[1757261473543,1.91575173,205.18,205.11,1.91575173]
[1757261473844,7.56,205.19,205.14,8.03]
[1757261474045,7.56,205.17,205.07,8.03]
[1757261474244,1.91575173,205.16,205.1,6.30335173]
[1757261477550,7.56,205.17,205.11,8.03]
[1757261480454,7.56,205.17,205.11,9.94575173]
[1757261481452,1.91575173,205.16,205.11,8.03]
[1757261481654,1.91575173,205.16,205.1,1.91575173]
[1757261483762,1.91575173,205.16,205.09,12.4178]
[1757261483949,1.91575173,205.16,205.1,1.91575173]
[1757261484460,1.91575173,205.16,205.09,12.4178]
[1757261484653,1.91575173,205.16,205.1,1.91575173]
[1757261486657,7.56,205.15,205.07,4.3883]
[1757261486863,7.56,205.15,205.08,8.03]
[1757261487158,30.84,205.2,205.07,14.33405173]
[1757261487159,9.47575173,205.13,205.07,14.33405173]
[1757261490670,7.56,205.08,205.01,8.03]
[1757261490869,1.91575173,205.07,205.01,8.03]
[1757261491069,7.56,205.08,205.02,1.91575173]
[1757261491363,1.91575173,205.11,205.04,9.94575173]
[1757261491569,9.47575173,205.12,205.04,9.94575173]
[1757261492068,9.47575173,205.12,205.05,8.03]
[1757261492364,9.47575173,205.12,205.06,1.91575173]
[1757261494366,1.91575173,205.1,205.05,8.03]
[1757261494569,1.91575173,205.08,205.02,12.4193]
[1757261495573,1.91575173,205.08,205.03,4.3891]
[1757261495762,1.91575173,205.08,205.04,8.05]
[1757261496168,7.77,205.07,205.04,8.05]
[1757261496870,1.91575173,205.08,205.04,8.05]
[1757261497067,1.91575173,205.08,205.03,4.3891]
[1757261497369,9.68575173,205.1,205.04,12.4389]
[1757261497569,9.68575173,205.1,205.04,14.35465173]
[1757261500673,9.68575173,205.1,205.04,12.4389]
[1757261501479,1.91575173,205.1,205.05,4.3886]
[1757261501675,7.77,205.09,205.05,12.4386]
[1757261501872,5.45389018,205.17,205.05,1.91575173]
[1757261502170,7.77,205.14,205.1,8.05]
[1757261502873,7.77,205.14,205.1,4.3876]
[1757261503071,7.77,205.14,205.11,8.05]
[1757261503271,7.77,205.14,205.1,12.4376]
[1757261504677,1.91575173,205.15,205.1,12.4376]
[1757261504976,7.77,205.14,205.1,12.4376]
[1757261507080,7.77,205.14,205.1,4.3876]
[1757261507282,7.77,205.14,205.11,8.05]
[1757261508577,7.77,205.15,205.08,8.05]
[1757261509375,13.22389018,205.15,205.08,8.05]
[1757261509883,13.22389018,205.15,205.09,4.3879]
[1757261514777,5.45389018,205.15,205.1,4.3877]
[1757261514979,7.77,205.14,205.1,12.4377]
[1757261515482,7.77,205.14,205.1,4.3877]
[1757261515682,7.77,205.14,205.1,12.4377]
[1757261517076,7.77,205.14,205.11,8.05]
[1757261517283,7.77,205.14,205.1,4.3877]
[1757261517580,7.77,205.14,205.11,8.05]
[1757261518480,5.45389018,205.16,205.11,8.05]
[1757261518679,7.77,205.15,205.11,8.05]
[1757261518886,5.45389018,205.16,205.11,8.05]
[1757261519586,7.77,205.15,205.11,8.05]
[1757261519785,5.45389018,205.16,205.11,8.05]
[1757261520387,7.77,205.15,205.11,8.05]
[1757261520584,5.45389018,205.16,205.11,12.4375]
[1757261520884,7.77,205.15,205.12,8.05]
[1757261521581,13.22389018,205.18,205.08,8.05]
[1757261521787,13.22389018,205.18,205.1,8.05]
[1757261522984,5.45389018,205.18,205.13,12.437]
[1757261523380,7.77,205.17,205.13,12.437]
[1757261523782,5.45389018,205.18,205.13,12.437]
[1757261524288,7.77,205.17,205.14,8.05]
[1757261524688,5.45389018,205.18,205.14,8.05]
[1757261525087,7.61,205.16,205.14,8.05]
[1757261527589,0.03661153,205.17,205.12,4.3872]
[1757261527791,7.61,205.16,205.12,11.7272]
[1757261528389,7.61,205.16,205.13,7.34]
[1757261534194,5.49050171,205.17,205.13,7.34]
[1757261534495,7.61,205.16,205.13,7.34]
[1757261535390,7.61,205.16,205.11,4.3874]
[1757261535997,5.49050171,205.17,205.11,4.3874]
[1757261536194,7.61,205.16,205.11,4.3874]
[1757261536496,13.10050171,205.17,205.11,11.7274]
[1757261539002,7.61,205.16,205.03,7.34]
[1757261539193,7.61,205.16,205.05,7.34]
[1757261539399,13.06389018,205.19,205.11,7.34]
[1757261539602,5.45389018,205.17,205.12,7.34]
[1757261539798,13.06389018,205.17,205.11,11.7274]
[1757261540397,5.45389018,205.16,205.11,4.3874]
[1757261540598,13.06389018,205.16,205.11,4.3874]
[1757261541106,13.06389018,205.16,205.12,7.34]
[1757261541406,13.06389018,205.16,205.11,4.3874]
[1757261541607,13.06389018,205.16,205.12,7.34]
[1757261541796,13.06389018,205.16,205.11,4.3874]
[1757261542405,5.45389018,205.16,205.12,7.34]
[1757261542602,13.06389018,205.15,205.09,11.7278]
[1757261544313,5.45389018,205.14,205.09,4.3878]
[1757261544511,5.45389018,205.14,205.1,7.34]
[1757261544813,13.06389018,205.14,205.1,7.34]
[1757261546105,13.06389018,205.14,205.08,7.34]
[1757261546310,7.61,205.14,205.08,7.34]
[1757261547512,7.61,205.14,205.09,4.3879]
[1757261548014,7.61,205.14,205.1,7.34]
[1757261548311,5.45389018,205.15,205.1,7.34]
[1757261548510,7.61,205.14,205.1,7.34]
[1757261548910,7.61,205.14,205.09,11.7279]
[1757261549109,7.61,205.14,205.1,7.34]
[1757261549312,5.45389018,205.15,205.1,4.3877]
[1757261549615,13.06389018,205.15,205.1,4.3877]
[1757261550104,7.61,205.14,205.08,4.3881]
[1757261550309,13.06389018,205.14,205.08,4.3881]
[1757261550505,13.06389018,205.14,205.05,7.34]
[1757261550706,7.61,205.14,205.05,7.34]
[1757261550908,13.06389018,205.14,205.05,7.34]
[1757261551415,7.61,205.14,205.05,7.34]
[1757261555415,13.06389018,205.14,205.05,7.34]
[1757261555913,13.09389018,205.12,205.05,7.34]
[1757261556116,7.64,205.09,205.0,7.81]
[1757261556315,13.09389018,205.09,205.0,7.81]
[1757261556817,7.64,205.07,205.0,7.81]
[1757261557015,7.64,205.07,205.01,4.3895]
[1757261562123,7.64,205.07,205.03,7.81]
[1757261562310,7.64,205.07,205.02,4.3893]
[1757261562515,7.64,205.07,205.03,7.81]
[1757261563116,7.64,205.07,205.02,4.3893]
[1757261563521,10.63612688,205.1,205.04,7.81]
[1757261564922,10.63612688,205.1,205.04,12.1989]
[1757261566123,7.64,205.09,205.02,4.3894]
[1757261566820,2.99612688,205.07,205.02,4.3894]
[1757261567027,7.64,205.06,205.02,12.1994]
[1757261567523,2.99612688,205.07,205.02,12.1994]
[1757261567929,7.64,205.06,205.02,12.1994]
[1757261568227,2.99612688,205.07,205.02,12.1994]
[1757261568422,7.64,205.06,205.02,12.1994]
[1757261568617,2.99612688,205.07,205.02,12.1994]
[1757261568817,7.64,205.06,205.02,12.1994]
[1757261569224,2.99612688,205.07,205.02,12.1994]
[1757261569722,7.64,205.06,205.02,7.81]
[1757261570223,2.99612688,205.07,205.02,7.81]
[1757261570430,1.91955978,205.04,205.02,7.81]
[1757261573438,1.91955978,205.04,205.0,4.3898]
[1757261574333,7.64,205.06,205.01,7.81]
[1757261574533,1.91955978,205.04,205.01,7.81]
[1757261575033,1.91955978,205.04,205.0,4.3898]